Cogmind - Beta 15 @@@ ROGUE MODE // 2025.06.29 @ 10:22:37 Player: arcadio rl Result: Destroyed by G3-2H9(R) with Subdweller Laser Performance ------------- Evolutions (0) 0 Regions Visited (2) 400 Robots Destroyed (15) 75 Value Destroyed (527) 527 Prototype IDs (2) 40 Alien Tech Used (0) 0 Bonus (0) 0 TOTAL SCORE: 1042 Bonus ------- None Cogmind --------- Core Integrity 0/250 Matter 300/300 Energy 100/100 System Corruption 1% Temperature Cool (6) Movement Treading (160) Location -10/Subcaves Parts ------- > --- POWER (1) -------- (None) > --- PROPULSION (2) --- Light Treads Light Treads > --- UTILITY (2) ------ Medium Storage Unit Light Armor Plating > --- WEAPON (2) ------- Grenade Launcher Ripper > --- INVENTORY (10) --- High-capacity Matter Pod (200) Subdweller Optics Makeshift Light Armor Plating Makeshift Kinetic Plating Subdweller Shrapnel Launcher Peak State ------------ > --- POWER ------------ Ion Engine > --- PROPULSION ------- Light Treads Light Treads > --- UTILITY ---------- Medium Storage Unit Subdweller Optics > --- WEAPON ----------- Battle Cannon Ripper > --- INVENTORY -------- Light Ion Engine Aluminum Leg Aluminum Leg Large Storage Unit High-capacity Matter Pod Small Laser Assault Rifle Grenade Launcher Grenade Launcher Subdweller Shrapnel Launcher [Rating: 13] Favorites ----------- Power Ion Engine Engine Ion Engine Propulsion Light Treads Treads Light Treads Leg Aluminum Leg Utility Medium Storage Unit Device ECM Suite Storage Medium Storage Unit Protection Scrap Shield Weapon Grenade Launcher Energy Gun Small Laser Ballistic Gun Assault Rifle Ballistic Cannon Battle Cannon Launcher Grenade Launcher Slashing Weapon Ripper Build | -11 -10 -10 ------- Run | Yrd Mat Sub Slots Evolved . | . . . Power . | . . . Propulsion . | . . . Utility . | . . . Weapon . | . . . Parts Attached 20 | 7 2 11 Power 1 | 1 . . Engine 1 | 1 . . Core . | . . . Reactor . | . . . Propulsion 5 | 2 . 3 Treads 3 | . . 3 Leg 2 | 2 . . Wheel . | . . . Hover . | . . . Flight . | . . . Utility 7 | 1 2 4 Device 2 | . 1 1 Storage 3 | 1 1 1 Processor . | . . . Hackware . | . . . Protection 2 | . . 2 Artifact . | . . . Weapon 7 | 3 . 4 Energy Gun 2 | 2 . . Energy Cannon . | . . . Ballistic Gun 1 | 1 . . Ballistic Cannon 1 | . . 1 Launcher 2 | . . 2 Special Weapon . | . . . Impact Weapon . | . . . Slashing Weapon 1 | . . 1 Piercing Weapon . | . . . Special Melee Weapon . | . . . Unidentified Prototypes . | . . . Parts Lost 4 | . . 4 Power 1 | . . 1 Propulsion . | . . . Utility 1 | . . 1 Weapon 2 | . . 2 Highest Loss Streak 3 | . . 3 To Critical Strikes . | . . . Average Backups 7 | 3 7 7 Power . | . 1 . Propulsion 1 | 2 4 1 Utility 2 | . 1 2 Weapon 2 | . 1 3 Tool/Special . | . . . Unused Backups 7 | . . 7 Power 1 | . . 1 Propulsion 2 | . . 2 Utility 2 | . . 2 Weapon 2 | . . 2 Tool/Special . | . . . Average Slot Usage (%) 92 | . 95 92 Engine 13 | . 14 13 Treads 18 | . . 22 Leg 9 | . 28 5 Device 4 | . 9 3 Storage 10 | . 14 9 Protection 7 | . . 8 Energy Gun 3 | . 14 . Ballistic Gun 4 | . 14 2 Ballistic Cannon 3 | . . 4 Launcher 13 | . . 16 Slashing Weapon 3 | . . 3 Peak Build Rating 13 | 6 8 13 Average Rating 8 | 3 6 9 On Entrance 4 | . 6 8 Naked Turns . | . . . Heaviest Build 29 | 13 20 29 Greatest Support 40 | 20 20 40 Greatest Overweight (x) 1 | . . 1 Average Overweight (x) . | . . . Largest Inventory Capacity 10 | 8 10 10 Average Capacity 8 | 6 9 8 Most Carried 10 | 6 10 10 Average Carried 7 | 3 7 7 Final Capacity 10 | 8 10 10 Final Carried 10 | 6 10 5 Class Distribution -------------------- 100% | Mutant Dominant Class ---------------- Mutant | -10/Materials Mutant | -10/Subcaves Resources | -11 -10 -10 ----------- Run | Yrd Mat Sub Matter Collected 971 | 228 40 703 Remotely . | . . . Salvage Created 444 | . 40 404 Parts 30 | . 3 27 Haulers Intercepted . | . . . Recyclers Shooed . | . . . Parts Field Recycled . | . . . Retrieved Matter . | . . . Parts Self-Destructed 3 | . . 3 Prevented . | . . . Kills | -11 -10 -10 ------- Run | Yrd Mat Sub Combat Hostiles Destroyed 13 | . . 13 Melee 6 | . . 6 Cannons 1 | . . 1 AOE 6 | . . 6 Classes Destroyed 4 | . 1 3 Watcher 2 | . 2 . Swarmer 1 | . . 1 Sentry 1 | . . 1 Subdweller 11 | . . 11 Best Kill Streak 3 | . 1 3 Combat Bots Only 3 | . . 3 Max Kills in Single Turn 1 | . 1 1 Gunslinging . | . . . Exploded 1 | . . 1 Melee 1 | . . 1 Uniques/NPCs Destroyed . | . . . Combat | -11 -10 -10 -------- Run | Yrd Mat Sub Hostile Shots Fired 60 | . . 60 Missed 11 | . . 11 Hits 49 | . . 49 Projectile 49 | . . 49 AOE 2 | . . 2 Damage Taken 1209 | . . 1209 Core 268 | . . 268 Absorbed by Shields . | . . . Core Remaining (%) 100 | 100 . . Volleys Fired 36 | . 19 17 Largest 2 | . 2 2 Hottest 60 | . 60 60 Shots Fired 67 | . 38 29 Gun 41 | . 38 3 Cannon 4 | . . 4 Launcher 22 | . . 22 Special . | . . . Kinetic 26 | . 19 7 Thermal 19 | . 19 . Explosive 22 | . . 22 Electromagnetic . | . . . Robot Hit Streak 8 | . 2 8 Robot Miss Streak 11 | . 11 3 Penetration Max . | . . . Secondary Targets . | . . . Shots Hit Robots 38 | . 9 29 Core Hits 23 | . 5 18 Critical Kills . | . . . Critical Parts Destroyed . | . . . Critical Strikes 2 | . . 2 Sever 2 | . . 2 Melee Attacks 34 | . . 34 Impact . | . . . Slashing 34 | . . 34 Piercing . | . . . Sneak Attacks . | . . . Combat Hostiles . | . . . Follow-up Attacks . | . . . Damage Inflicted 1747 | . 164 1583 Guns 185 | . 161 24 Cannons 28 | . . 28 Explosions 778 | . . 778 Melee 753 | . . 753 Ramming 3 | . 3 . Kinetic 156 | . 104 52 Thermal 57 | . 57 . Explosive 778 | . . 778 Electromagnetic . | . . . Impact . | . . . Slashing 753 | . . 753 Piercing . | . . . Highest Corruption 1 | . 1 1 Average Corruption 1 | . 1 1 Corruption Purged . | . . . Corruption Blocked . | . . . Effects 20 | . 4 16 Message Errors 4 | . 1 3 Matter Fused 7 | . 1 6 Heat Flow Errors 4 | . . 4 Energy Discharges 1 | . . 1 Data Loss (minor) 2 | . 1 1 Data Loss (major) 2 | . 1 1 Overload Shots . | . . . Overflow Damage 9 | . . 9 Projectiles . | . . . Explosions 9 | . . 9 Melee . | . . . Knockbacks . | . . . Impact . | . . . Kinetic . | . . . Secondary . | . . . Self-Inflicted Damage 90 | . . 90 Shots 5 | . . 5 Rammed . | . . . Targets Rammed 1 | . 1 . Kicked 1 | . 1 . Crushed . | . . . Highest Temperature 171 | . . 171 Average Temperature 73 | . . 73 Received Heat Transfer 213 | . . 213 Siege Activations . | . . . Martial Activations . | . . . Shielding Activations . | . . . Robots Disrupted . | . . . Combat Hostiles . | . . . Robots Corrupted . | . . . Combat Hostiles . | . . . Parts Fried . | . . . Impact Corruptions . | . . . Robots Melted . | . . . Combat Hostiles . | . . . Parts Melted . | . . . Heat Transferred 125 | . 125 . Parts Sabotaged . | . . . Parts Stolen . | . . . Parts Stripped . | . . . Power Chain Reactions . | . . . Alert | -11 -10 -10 ------- Run | Yrd Mat Sub Maximum Alert Level . | . . . Low Security (%) 100 | 100 100 . Level 1 . | . . . Level 2 . | . . . Level 3 . | . . . Level 4 . | . . . Level 5 . | . . . High Security . | . . . Max Security . | . . . Peak Influence 22 | . 22 . Initial . | . . . Average 1 | . 1 . Influence Increases 82 | . 42 40 Destroy 0b10 Robot/C 40 | . . 40 Destroy 0b10 Robot/NC 10 | . 10 . Destroy Leader 4 | . 4 . Successful Hack 13 | . 13 . Partial Spotted 15 | . 15 . Influence Decreases 82 | . 42 40 Time Decay 82 | . 42 40 Squads Dispatched . | . . . Investigation . | . . . Extermination . | . . . Reinforcement . | . . . Assault . | . . . Garrison . | . . . Intercept . | . . . Searches Triggered . | . . . Construction Impeded . | . . . Haulers Reinforced . | . . . Active Scanning Responses . | . . . Cargo Convoy Interrupts . | . . . Stealth | -11 -10 -10 --------- Run | Yrd Mat Sub Distress Signals . | . . . Communications Jammed . | . . . Distress Signals . | . . . Times Spotted 24 | . 9 15 Peak Tracking Total 3 | . 3 3 Tactical Retreats . | . . . Traps | -11 -10 -10 ------- Run | Yrd Mat Sub Traps Triggered 1 | . . 1 Indirectly . | . . . Trap Hack Attempts . | . . . Triggered . | . . . Disarmed . | . . . Reprogrammed . | . . . Reused . | . . . Traps Extracted . | . . . Installed . | . . . Triggered . | . . . Machines | -11 -10 -10 ---------- Run | Yrd Mat Sub Machines Disabled . | . . . Max in Single Turn . | . . . Machines Repaired . | . . . Machines Dismantled . | . . . Machines Sabotaged . | . . . Overloaded Fab Kills . | . . . Hacking | -11 -10 -10 --------- Run | Yrd Mat Sub Machines Accessed 2 | . 2 . Terminals 2 | . 2 . Fabricators . | . . . Repair Stations . | . . . Recycling Units . | . . . Scanalyzers . | . . . Garrison Access . | . . . Total Hacks 7 | . 7 . Successful 3 | . 3 . Failed 4 | . 4 . Catastrophic 1 | . 1 . Database Lockouts . | . . . Manual 3 | . 3 . Terminals 7 | . 7 . Fabricators . | . . . Repair Stations . | . . . Recycling Units . | . . . Scanalyzers . | . . . Garrison Access . | . . . Terminal Hacks 2 | . 2 . Prototype ID Bank 1 | . 1 . Dispatch Records 1 | . 1 . Fabricator Hacks . | . . . Repair Station Hacks . | . . . Recycling Unit Hacks . | . . . Scanalyzer . | . . . Garrison Access Hacks . | . . . Unauthorized Hacks 1 | . 1 . Terminals 1 | . 1 . Botnet 1 | . 1 . Fabricators . | . . . Repair Stations . | . . . Recycling Units . | . . . Scanalyzers . | . . . Garrison Access . | . . . Data Cores Recovered . | . . . Used . | . . . Hacking Detections 2 | . 2 . Full Trace Events 1 | . 1 . Feedback Events 1 | . 1 . Corruption 1 | . 1 . Feedback Blocked . | . . . Robot Schematics Acquired . | . . . Robots Built . | . . . Authchips . | . . . Time . | . . . Total Robot Build Rating . | . . . Part Schematics Acquired . | . . . Parts Built . | . . . Authchips . | . . . Time . | . . . Total Part Build Rating . | . . . Parts Repaired . | . . . Time . | . . . Parts Recycled . | . . . Recycled Matter . | . . . Retrieved Matter . | . . . Retrieved Components . | . . . Parts Scanalyzed . | . . . Part Schematics Acquired . | . . . Parts Damaged . | . . . Bothacking | -11 -10 -10 ------------ Run | Yrd Mat Sub Used RIF Installer . | . . . Robots Hacked . | . . . Non-combat . | . . . Combat . | . . . Robot Hacks Applied . | . . . Relay Couplers Released . | . . . Fabnet Peak Effective % . | . . . Robots Rewired . | . . . Allies Hacked . | . . . Hacks Repelled . | . . . Allies | -11 -10 -10 -------- Run | Yrd Mat Sub Total Allies . | . . . Largest Group . | . . . Highest-Rated Group . | . . . Highest-Rated Ally . | . . . Total Orders . | . . . Ally Attacks . | . . . Total Damage . | . . . Kills . | . . . Allies Corrupted . | . . . Allies Melted . | . . . Intel | -11 -10 -10 ------- Run | Yrd Mat Sub Active Infowar (turns) 1023 | . 379 644 Optics 511 | . . 511 ECM 512 | . 379 133 Robot Analysis Total . | . . . Derelict Logs Recovered 1 | . . 1 Drone Launches . | . . . Drone Recoveries . | . . . Exploration | -11 -10 -10 ------------- Run | Yrd Mat Sub Turns Passed 3146 | 85 551 2510 Spaces Moved 1935 | 64 382 1489 Core 12 | 12 . . Treads 1179 | . . 1179 Legs 744 | 52 382 310 Wheels . | . . . Hover . | . . . Flight . | . . . Fastest Speed 50 | 50 120 120 Average Speed 145 | 106 120 153 Slowest Speed 190 | 120 120 190 Overloaded Moves . | . . . Propulsion Burnouts . | . . . Robots Hopped . | . . . Potential Cave-ins . | . . . Cave-ins Triggered . | . . . Exploration Rate (%) 44 | 5 51 77 Regions Visited 2 Branch Regions 1 Pre-discovered Areas 1 | . . 1 Known Exits Taken . | . . . Unknown Exits Taken 2 | 1 1 . Scrap Searched 8 | . . 8 Spaces Dug 15 | . . 15 Terrain Destroyed 79 | . . 79 Melee 6 | . . 6 Projectile 2 | . . 2 AOE 71 | . . 71 Terrain Rammed . | . . . Walls Destroyed . | . . . Machines Disabled . | . . . Actions | -11 -10 -10 --------- Run | Yrd Mat Sub Total 2147 | 77 436 1634 Wait 79 | . 26 53 Move 1933 | 63 381 1489 Hop . | . . . Pick Up 23 | 7 5 11 Fast Attach 8 | 5 1 2 Attach 7 | 1 . 6 Detach 2 | . . 2 Swap 9 | 1 1 7 Drop 13 | . 2 11 Fire 36 | . 19 17 Melee 34 | . . 34 Ram . | . . . Kick 1 | . 1 . Crush . | . . . Escape Stasis . | . . . Rewire . | . . . Trap . | . . . Miscellaneous 2 | . . 2 Route ------- -11/Scrapyard -10/Materials (discovered 2 exits: [*Min] / [*Sub]) -10/Subcaves History --------- Turn | Location | Event 10 | -11/Scrapyard | Discovered new exit (range 16) 86 | -11/Scrapyard | Entered Materials 91 | -10/Materials | Discovered new exit (range 11) 323 | -10/Materials | Build established: Mutant 632 | -10/Materials | Discovered new exit (range 5) 637 | -10/Materials | Entered Subcaves 734 | -10/Subcaves | Shifting Twisted Machinery released Ripper 735 | -10/Subcaves | Shifting Twisted Machinery released Battle Cannon 1141 | -10/Subcaves | Core integrity fell below 50% 1555 | -10/Subcaves | Core integrity fell below 20% 2375 | -10/Subcaves | Learned location of Mines (-9) 2516 | -10/Subcaves | A swath of the cavern ceiling suddenly collapsed 2740 | -10/Subcaves | Ambushed by Subdweller buried in earth 3108 | -10/Subcaves | Lost 3 parts (1p1u1w) 3144 | -10/Subcaves | Disturbed a concealed Subdweller 3147 | -10/Subcaves | Destroyed by G3-2H9(R) with Subdweller Laser Last Messages --------------- 03115_ Found 59 Matter. 03116_ Acquired 59 matter. 03116_ Searching scrap... 03116_ Found Mak. Kinetic Plating. 03116_ Found Shrapnel Trap. 03116_ Found 55 Matter. 03117_ Acquired 1 matter. 03118_ Searching scrap... 03118_ Found Piercing Trap. 03118_ Found Sub. Laser. 03118_ Found 63 Matter. 03123_ Subatomizers dissect the Sub. Shrapnel Launcher. 03126_ Acquired Sub. Shrapnel Launcher. 03130_ Acquired Mak. Kinetic Plating. 03136_ Subatomizers dissect the Battle Rifle. 03139_ Acquired Mak. Light Armor Plating. 03144_ G3-2H9(R) angrily emerges from the Twisted Machinery. 03147_ Subatomizers dissect the Battle Rifle. Map ----- +----------------------------------------------------+ | ??????????????????????### ## #?? | | ?????????????????????## #####?? | | ????????????????###?## #?????? | | ????????????????# ## ##????? | | ???????????????## #????? | | ???????????????# ##????? | | ???????????????# #????## | | ???????????????# ##?## # | | ???????????????## ### | | ????????????????# | | ????????????????# # | | ????????????????## # | | ????????????????# ### ### | | ????????????????# ?# ##?# ### | | ????????????????## #?# #??##?? | | ????????########## #?# #?????? | | ??????###"" < <## #### #?????? | | ?????##<" && ## ## #?????? | | ?????#< "" ## ### ##?????? | | ????##< "" "## # #?????? | | ????# #?????? | | ????#< &[ [ ##?????? | | ????# *%%[ # ##??????? | | ????#< !&#[ # ##??????? | | ????# ]# & ##?????? | | ????#< ] @ # #?????? | | ????##< R ## " ###?????? | | ?????# &<& < # #???????? | | ?????## < <<### #???????? | | ??????###<< < ##?# #???????? | | ????????#######??## #??????? | | ??????????????????# # ###??????? | | ??????????????????# #####????????? | | ??????????????????# #????????????? | | ?????????????????? ????????????? | | ?????????????????? ????????????? | | ??????????????????# #????????????? | | ??????????????????? ????????????? | | ??????????????????? ????????????? | | ??????????????????? ????????????? | | ??????????????????? #????????????? | | ??????????????????? ?????????????? | | ?????????????????????????????????? | | ?????????????????????????????????? | | ?????????????????????????????????? | | ?????????????????????????????????? | | ?????????????????????????????????? | | ?????????????????????????????????? | | ?????????????????????????????????? | | ?????????????????????????????????? | +----------------------------------------------------+ Best States ------------- Heat Dissipation 25 Energy Generation 10 Energy Capacity 250 Matter Stores 300 Matter Capacity 300 Sight Range 21 Terrain Scan Density 10 ECM Strength 1 Armor Coverage 800 Evasion (%) 55 Recoil Reduction 2 Item Schematics ----------------- None Robot Schematics ------------------ None Fabricated ------------ Nothing Repaired ---------- Nothing Alien Tech Used ----------------- None Achievements -------------- None Challenges ------------ None Game ------ Seed FireConceptSystem Manual? 0 Play Time 00:31:43 Cumulative 129.5 hours Start 2025.06.29 @ 09:39:59 End 2025.06.29 @ 10:22:37 Sessions 1 Manual Loads 0 Difficulty Rogue Special Mode None Game No. 108 Rogue 108 Adventurer 0 Explorer 0 Win Type - Total 0 Types 0/0/0/0/0/0/0/0/0/0 Lore% 41 Gallery% 49 Achievement% 42 Wizard Run 0 Options --------- Layout 1 ASCII 0 Keyboard 1 Movement Numpad Keybinds 0 Fullscreen 1 Font 24/Smallcaps Map View 50x35 Zoom Use 0% Tactical HUD 1 Map Filters NONE Filters NONE Steam 1 RUN: a9744f86-1924-4120-b283-0e8e3cd82adb